bitfinex-derivatives/quotes_BTCF0:USTF0_20251209
["timestamp","ask_amount","ask_price","bid_price","bid_amount"]
[1765249644261,0.00016653,90109.0,90108.0,0.11594]
[1765249645456,0.07154653,90109.0,90108.0,0.11594]
[1765249645658,0.07154653,90109.0,90108.0,0.11694]
[1765249646453,0.06157942,90109.0,90108.0,0.11794]
[1765249646655,0.06257942,90109.0,90108.0,0.12194]
[1765249646960,0.02688942,90109.0,90108.0,0.12194]
[1765249647154,0.02688942,90109.0,90108.0,0.11994]
[1765249647359,0.02688942,90109.0,90108.0,0.12194]
[1765249648160,0.02688942,90109.0,90108.0,0.12694]
[1765249651154,0.011095,90123.0,90122.0,0.11594]
[1765249651365,0.0110946,90127.0,90125.0,0.03719]
[1765249651569,0.0110941,90131.0,90130.0,0.11594]
[1765249652962,0.0110941,90131.0,90130.0,0.11794]
[1765249653166,0.1258841,90131.0,90130.0,0.11794]
[1765249653956,0.1258836,90135.0,90134.0,0.11594]
[1765249654758,0.1258831,90139.0,90138.0,0.11594]
[1765249656166,0.1258831,90139.0,90138.0,0.12294]
[1765249656167,0.1268831,90139.0,90138.0,0.12294]
[1765249656569,0.001,90139.0,90138.0,0.12394]
[1765249658764,0.0577,90139.0,90138.0,0.12394]
[1765249660072,0.001,90139.0,90138.0,0.12394]
[1765249661669,0.001,90139.0,90138.0,0.16113]
[1765249664575,0.026588,90139.0,90138.0,0.16113]
[1765249666462,0.128248,90139.0,90138.0,0.16113]
[1765249666769,0.128248,90139.0,90138.0,0.008]
[1765249666770,0.519341,90139.0,90138.0,0.008]
[1765249666968,0.519341,90139.0,90138.0,0.12031]
[1765249670778,0.077418,90139.0,90138.0,0.1553]
[1765249670975,0.026588,90139.0,90138.0,0.1553]
[1765249674378,0.13693196,90139.0,90138.0,0.1553]
[1765249675084,0.18776196,90139.0,90138.0,0.1553]
[1765249675377,0.499341,90139.0,90138.0,0.12031]
[1765249675582,0.499341,90139.0,90138.0,0.06338]
[1765249675780,0.549341,90139.0,90138.0,0.12031]
[1765249675980,0.549341,90139.0,90138.0,0.1553]
[1765249676883,0.509341,90139.0,90138.0,0.1553]
[1765249677881,0.519341,90139.0,90138.0,0.1553]
[1765249678683,0.309341,90139.0,90138.0,0.1553]
[1765249680678,0.309341,90139.0,90138.0,0.1483]
[1765249680881,0.128248,90139.0,90138.0,0.1543]
[1765249681271,0.18782903,90139.0,90138.0,0.1543]
[1765249681494,0.18782903,90139.0,90138.0,0.1533]
[1765249681673,0.18782903,90139.0,90138.0,0.1543]
[1765249682082,0.08616903,90139.0,90138.0,0.1543]
[1765249682475,0.12631903,90139.0,90138.0,0.1543]
[1765249682670,0.08616903,90139.0,90138.0,0.1543]
[1765249683483,0.08616903,90139.0,90138.0,0.1553]
[1765249684090,0.16653037,90139.0,90138.0,0.1543]
[1765249684289,0.16653037,90139.0,90138.0,0.1563]
[1765249684677,0.16653037,90139.0,90138.0,0.1593]
[1765249684877,0.16653037,90139.0,90138.0,0.1573]
[1765249685087,0.16653037,90139.0,90138.0,0.1593]
[1765249685287,0.10694934,90139.0,90138.0,0.1593]
[1765249687686,0.06679934,90139.0,90138.0,0.1593]
[1765249689991,0.10694934,90139.0,90138.0,0.1593]
[1765249691594,0.06679934,90139.0,90138.0,0.1593]
[1765249691991,0.02664934,90139.0,90138.0,0.1593]
[1765249692189,0.02664934,90139.0,90120.0,0.0482853]
[1765249692190,0.0110965,90111.0,90102.0,0.11205474]
[1765249692387,0.0110974,90104.0,90102.0,0.13524]
[1765249692593,0.02564934,90103.0,90102.0,0.13524]
[1765249693301,0.02564934,90103.0,90102.0,0.13724]
[1765249693508,0.02564934,90103.0,90102.0,0.14524]
[1765249694000,0.02564934,90103.0,90102.0,0.13524]
[1765249694198,0.02664934,90103.0,90102.0,0.14224]
[1765249694600,0.02564934,90103.0,90102.0,0.13624]
[1765249694801,0.02664934,90103.0,90102.0,0.14224]
[1765249695502,0.02664934,90103.0,90102.0,0.14124]
[1765249716212,0.44664934,90103.0,90102.0,0.14124]
[1765249720823,0.1115886,90094.0,90093.0,0.00016643]
[1765249721024,0.52723794,90094.0,90093.0,0.10293643]
[1765249721327,0.52723794,90094.0,90093.0,0.00016643]
[1765249721626,0.1115896,90086.0,90085.0,0.10287751]
[1765249721824,0.55723894,90086.0,90085.0,0.10287751]
[1765249722920,0.56223894,90086.0,90085.0,0.10387751]
[1765249723128,0.56223894,90086.0,90075.0,0.10795]
[1765249723129,0.46174894,90086.0,90075.0,0.10795]
[1765249723336,0.46174894,90086.0,90060.0,0.02999]
[1765249723337,0.115772,90066.0,90065.0,0.10906032]
[1765249723633,0.14142134,90066.0,90065.0,0.10906032]
[1765249724221,0.14152885,90066.0,90065.0,0.10906032]
[1765249724621,0.14152885,90066.0,90065.0,0.11006032]
[1765249724931,0.14552885,90066.0,90065.0,0.00411032]
[1765249725232,0.51552885,90066.0,90065.0,0.11206032]
[1765249726316,0.51252885,90066.0,90065.0,0.10906032]
[1765249726521,0.52152885,90066.0,90065.0,0.11106032]
[1765249729229,0.51042685,90066.0,90065.0,0.11106032]
[1765249730129,0.14042685,90066.0,90065.0,0.11106032]
[1765249730433,0.23226685,90066.0,90065.0,0.11106032]
[1765249731037,0.37042685,90066.0,90065.0,0.11106032]
[1765249738437,0.37042685,90066.0,90065.0,0.14114032]
[1765249739540,0.14042685,90066.0,90065.0,0.14114032]
[1765249740644,0.53042685,90066.0,90065.0,0.14114032]
[1765249741842,0.53042685,90066.0,90065.0,0.11106032]
[1765249742045,0.10467,90055.0,90054.0,0.13803]
[1765249742234,0.47467,90055.0,90054.0,0.13803]
[1765249742744,0.10467,90055.0,90054.0,0.13803]
[1765249742946,0.2757734,90055.0,90054.0,0.13803]
[1765249743142,0.54585195,90055.0,90054.0,0.13803]
[1765249743354,0.54585195,90055.0,90054.0,0.10795]
[1765249744751,0.29585195,90055.0,90054.0,0.10795]
[1765249745264,0.30085195,90055.0,90054.0,0.10795]
[1765249747255,0.3271113,90055.0,90054.0,0.10795]
[1765249747952,0.1471113,90055.0,90054.0,0.10795]
[1765249748643,0.5171113,90055.0,90054.0,0.10795]
[1765249753561,0.5171113,90055.0,90040.0,0.10517062]
[1765249753562,0.10494,90041.0,90040.0,0.10517062]
[1765249753857,0.55240081,90041.0,90040.0,0.13774062]
[1765249754062,0.54129571,90041.0,90040.0,0.13774062]
[1765249754356,0.005,90055.0,90054.0,0.10406]
[1765249754658,0.005,90055.0,90054.0,0.37663]
[1765249754858,0.00016653,90064.0,90063.0,0.1151624]
[1765249755045,0.1302903,90080.0,90079.0,0.10406]
[1765249755361,0.07067056,90083.0,90082.0,0.10406]
[1765249755362,0.1160399,90083.0,90082.0,0.10406]
[1765249755546,0.5060399,90083.0,90082.0,0.10406]
[1765249755948,0.10494,90073.0,90072.0,0.13663]
[1765249757659,0.10694,90073.0,90072.0,0.13763]
[1765249757860,0.002,90073.0,90072.0,0.13763]
[1765249758047,0.002,90073.0,90072.0,0.48763]
[1765249758356,0.10605001,90090.0,90089.0,0.10406]
[1765249758561,0.49605001,90090.0,90089.0,0.10406]
[1765249760160,0.49705001,90090.0,90089.0,0.10606]
[1765249766262,0.52298867,90090.0,90089.0,0.10606]
[1765249767768,0.39211001,90090.0,90089.0,0.10606]
[1765249768163,0.49705001,90090.0,90089.0,0.10606]
[1765249771559,0.52790001,90090.0,90089.0,0.0532]
[1765249774058,0.13790001,90090.0,90089.0,0.0532]
[1765249774262,0.27790001,90090.0,90089.0,0.10606]
[1765249774664,0.24705001,90090.0,90089.0,0.10606]
[1765249774968,0.00211001,90090.0,90089.0,0.51606]
[1765249779670,0.05261001,90090.0,90089.0,0.25606]
[1765249779979,0.10705001,90090.0,90089.0,0.10606]
[1765249784180,0.13305547,90090.0,90089.0,0.10606]
[1765249789678,0.02811547,90090.0,90089.0,0.33606]
[1765249790292,0.12705547,90090.0,90089.0,0.10606]
[1765249793387,0.53460547,90090.0,90089.0,0.10606]
[1765249793582,0.53460547,90090.0,90089.0,0.002]
[1765249793789,0.53460547,90090.0,90089.0,0.04926]
[1765249793990,0.53460547,90090.0,90089.0,0.002]
[1765249796389,0.50705547,90090.0,90089.0,0.10387]
[1765249797679,0.54735457,90090.0,90089.0,0.002]
[1765249798184,0.09894,90073.0,90072.0,0.10187]
[1765249798391,0.48600189,90073.0,90072.0,0.10187]
[1765249799192,0.09894,90064.0,90063.0,0.11313893]
[1765249799984,0.09910653,90073.0,90072.0,0.13251]
[1765249800184,0.37505392,90073.0,90072.0,0.13251]
[1765249800891,0.12505392,90073.0,90072.0,0.1436113]
[1765249801293,0.12705392,90073.0,90072.0,0.1506113]
[1765249801678,0.12705392,90073.0,90072.0,0.1436113]
[1765249801885,0.12705392,90073.0,90072.0,0.1506113]
[1765249802592,0.12705392,90073.0,90072.0,0.1486113]
[1765249802792,0.12705392,90073.0,90072.0,0.13951]
[1765249803785,0.47705392,90073.0,90072.0,0.13951]
[1765249803994,0.47705392,90073.0,90072.0,0.10887]
[1765249805492,0.47702012,90073.0,90072.0,0.10887]
[1765249809093,0.24702012,90073.0,90072.0,0.1470113]
[1765249813200,0.12059012,90073.0,90072.0,0.1470113]
[1765249815199,0.07499012,90073.0,90072.0,0.1470113]
[1765249815601,0.12059012,90073.0,90072.0,0.1470113]
[1765249816710,0.02808012,90073.0,90072.0,0.1470113]
[1765249816911,0.00216653,90073.0,90072.0,0.1470113]
[1765249817310,0.04689653,90073.0,90072.0,0.1470113]
[1765249818510,0.00216653,90073.0,90072.0,0.1470113]
[1765249818716,0.04689653,90073.0,90072.0,0.1470113]
[1765249818913,0.00216653,90073.0,90072.0,0.1470113]
[1765249819417,0.00216653,90073.0,90072.0,0.5470113]
[1765249820614,0.1014292,90089.0,90088.0,0.1021693]
[1765249820817,0.1273639,90089.0,90088.0,0.1021693]
[1765249823222,0.1283639,90089.0,90088.0,0.1041693]
[1765249824010,0.1283639,90089.0,90088.0,0.09307]
[1765249826524,0.1172647,90089.0,90088.0,0.09307]
[1765249827833,0.4872647,90089.0,90088.0,0.09307]
[1765249834126,0.4872647,90089.0,90088.0,0.002]
[1765249834729,0.4872647,90089.0,90088.0,0.09307]
[1765249837434,0.48712776,90089.0,90088.0,0.09307]
[1765249842829,0.48712776,90089.0,90088.0,0.002]
[1765249843035,0.48712776,90089.0,90068.0,0.02803]
[1765249843338,0.0962917,90069.0,90068.0,0.10997]
[1765249844127,0.0962917,90069.0,90068.0,0.08194]
[1765249844327,0.0962917,90069.0,90068.0,0.08394]
[1765249844839,0.0962917,90069.0,90068.0,0.10954]
[1765249845339,0.0962917,90069.0,90068.0,0.11154]
[1765249845740,0.0962917,90069.0,90068.0,0.10954]
[1765249845932,0.1012917,90069.0,90068.0,0.11154]
[1765249846239,0.12708792,90069.0,90068.0,0.08594]
[1765249846440,0.12408792,90069.0,90068.0,0.08994]
[1765249846738,0.12408792,90069.0,90068.0,0.08794]
[1765249846935,0.12408792,90069.0,90068.0,0.08994]
[1765249847138,0.11298622,90069.0,90068.0,0.11554]
[1765249847339,0.11298462,90069.0,90068.0,0.11554]
[1765249847634,0.11298462,90069.0,90068.0,0.11354]
[1765249848342,0.11298462,90069.0,90068.0,0.11254]
[1765249848538,0.04126,90069.0,90068.0,0.11454]
[1765249848933,0.03926,90069.0,90068.0,0.10954]
[1765249849133,0.04126,90069.0,90068.0,0.11454]
[1765249849536,0.1129815,90069.0,90068.0,0.10954]
[1765249849842,0.1129815,90069.0,90068.0,0.11054]
[1765249850232,0.1129815,90069.0,90068.0,0.11454]
[1765249850433,0.4729815,90069.0,90068.0,0.11454]
[1765249850736,0.4729815,90069.0,90068.0,0.11254]
[1765249850934,0.4729815,90069.0,90068.0,0.11454]
[1765249851137,0.44719,90069.0,90068.0,0.11454]
[1765249851748,0.44519,90069.0,90068.0,0.10954]
[1765249851938,0.44719,90069.0,90068.0,0.11454]
[1765249854348,0.47296664,90069.0,90068.0,0.11454]
[1765249855647,0.20719,90069.0,90068.0,0.11454]
[1765249858849,0.002,90069.0,90068.0,0.46454]
[1765249859951,0.08719,90069.0,90068.0,0.11454]
[1765249862254,0.08719,90069.0,90068.0,0.08894]
[1765249862850,0.08719,90069.0,90068.0,0.11169]
[1765249863053,0.08719,90069.0,90068.0,0.52169]
[1765249864455,0.002,90069.0,90068.0,0.52169]
[1765249864750,0.03998,90069.0,90068.0,0.52169]
[1765249864951,0.07888,90069.0,90068.0,0.52169]
[1765249868345,0.03998,90069.0,90068.0,0.52169]
[1765249868550,0.002,90069.0,90068.0,0.52169]
[1765249869262,0.03998,90069.0,90068.0,0.52169]
[1765249869868,0.07888,90069.0,90068.0,0.52169]
[1765249871669,0.07888,90069.0,90068.0,0.26169]
[1765249872050,0.07888,90069.0,90068.0,0.11169]
[1765249872254,0.10470626,90069.0,90068.0,0.50169]
[1765249874660,0.10470626,90069.0,90068.0,0.26169]
[1765249875259,0.10470626,90069.0,90068.0,0.11169]
[1765249885374,0.10470626,90069.0,90068.0,0.08894]
[1765249887972,0.10470626,90069.0,90068.0,0.04593]
[1765249888474,0.10470626,90069.0,90068.0,0.08208]
[1765249890363,0.48888,90069.0,90068.0,0.08208]
[1765249890563,0.51484303,90069.0,90068.0,0.08208]
[1765249891169,0.51484303,90069.0,90063.0,0.02300653]
[1765249891170,0.0847823,90064.0,90063.0,0.00016653]
[1765249891375,0.0847838,90052.0,90051.0,0.07455]
[1765249891875,0.11072907,90052.0,90051.0,0.07455]
[1765249892259,0.0847838,90052.0,90051.0,0.07455]
[1765249893068,0.0847838,90052.0,90051.0,0.07555]
[1765249893262,0.0877838,90052.0,90051.0,0.07555]
[1765249894070,0.0887838,90052.0,90051.0,0.07555]
[1765249894868,0.005,90052.0,90051.0,0.07555]
[1765249895067,0.005,90052.0,90051.0,0.4766539]
[1765249898180,0.04151,90052.0,90051.0,0.4766539]
[1765249898476,0.07868,90052.0,90051.0,0.23555]
[1765249898869,0.07868,90052.0,90051.0,0.07555]
[1765249902672,0.45868,90052.0,90051.0,0.07555]
[1765249905380,0.07868,90052.0,90051.0,0.07555]
[1765249906677,0.46868,90052.0,90051.0,0.07555]
[1765249906980,0.48842,90052.0,90051.0,0.001]
[1765249907274,0.48842,90052.0,90051.0,0.06844]
[1765249907275,0.46868,90052.0,90051.0,0.06844]
[1765249908481,0.48842,90052.0,90051.0,0.001]
[1765249908676,0.48842,90052.0,90051.0,0.03337]
[1765249909380,0.48842,90052.0,90051.0,0.001]
[1765249909782,0.07194,90043.0,90042.0,0.06760653]
[1765249909974,0.49194,90043.0,90042.0,0.06760653]
[1765249910784,0.2130449,90043.0,90042.0,0.06760653]
[1765249911581,0.2130449,90043.0,90042.0,0.06860653]
[1765249912186,0.2170449,90043.0,90042.0,0.06860653]
[1765249912882,0.4370449,90043.0,90042.0,0.06860653]
[1765249913077,0.4370449,90043.0,90042.0,0.00116653]
[1765249913386,0.2170449,90043.0,90042.0,0.03353653]
[1765249913584,0.2170449,90043.0,90042.0,0.06860653]
[1765249915884,0.0870449,90043.0,90042.0,0.06860653]
[1765249917784,0.004,90043.0,90042.0,0.48971153]
[1765249918289,0.004,90043.0,90042.0,0.21971153]
[1765249918683,0.004,90043.0,90042.0,0.42971153]
[1765249919075,0.004,90043.0,90042.0,0.07971153]
[1765249919288,0.0151049,90043.0,90042.0,0.17860653]
[1765249919486,0.00016653,90052.0,90051.0,0.06744]
[1765249919690,0.00016653,90052.0,90051.0,0.44744]
[1765249920081,0.00016653,90052.0,90051.0,0.06744]
[1765249920279,0.07210653,90052.0,90051.0,0.06744]
[1765249920480,0.07210653,90052.0,90051.0,0.21744]
[1765249920889,0.07310653,90052.0,90051.0,0.21744]
[1765249921087,0.03493653,90052.0,90051.0,0.21744]
[1765249921393,0.03993653,90052.0,90051.0,0.21744]
[1765249921784,0.07310653,90052.0,90051.0,0.21744]
[1765249921989,0.07710653,90052.0,90051.0,0.21744]
[1765249922289,0.07710653,90052.0,90051.0,0.06744]
[1765249922488,0.0750249,90043.0,90042.0,0.06213653]
[1765249924496,0.48289849,90043.0,90042.0,0.00116653]
[1765249924693,0.48289849,90043.0,90042.0,0.00216653]
[1765249925490,0.48289849,90043.0,90042.0,0.06413653]
[1765249925682,0.30289849,90043.0,90042.0,0.06413653]
[1765249925887,0.52289849,90043.0,90042.0,0.06413653]
[1765249926895,0.10289849,90043.0,90042.0,0.08342653]
[1765249927394,0.15289849,90043.0,90042.0,0.03236653]
[1765249927783,0.10289849,90043.0,90042.0,0.06413653]
[1765249927998,0.10289849,90043.0,90042.0,0.08342653]
[1765249928888,0.10289849,90043.0,90042.0,0.06413653]
[1765249930493,0.10289849,90043.0,90042.0,0.08342653]
[1765249936600,0.00016653,90052.0,90051.0,0.0731239]
[1765249936804,0.0749416,90070.0,90069.0,0.03091]
[1765249936995,0.0749416,90070.0,90069.0,0.06202]
[1765249936996,0.10079745,90070.0,90069.0,0.06202]
[1765249938005,0.10279745,90070.0,90069.0,0.06402]
[1765249939806,0.10079745,90070.0,90069.0,0.06302]
[1765249940009,0.09169585,90070.0,90069.0,0.06702]
[1765249940492,0.09169585,90070.0,90069.0,0.06802]
[1765249941089,0.08969585,90070.0,90069.0,0.06302]
[1765249941301,0.09169585,90070.0,90069.0,0.06802]
[1765249942707,0.08969585,90070.0,90069.0,0.06302]
[1765249942901,0.09169585,90070.0,90069.0,0.06802]
[1765249943206,0.06584,90070.0,90069.0,0.06802]
[1765249943605,0.06584,90070.0,90069.0,0.06702]
[1765249943803,0.06584,90070.0,90069.0,0.06202]
[1765249943804,0.06384,90070.0,90069.0,0.06202]
[1765249944108,0.06484,90070.0,90069.0,0.06402]
[1765249946012,0.06984,90070.0,90069.0,0.06402]
[1765249946203,0.07184,90070.0,90069.0,0.06402]
[1765249959719,0.03898,90070.0,90069.0,0.06402]
[1765249959912,0.07184,90070.0,90069.0,0.06402]
[1765249962222,0.008,90070.0,90069.0,0.06402]
[1765249964026,0.03751,90070.0,90069.0,0.06402]
[1765249964218,0.008,90070.0,90069.0,0.06402]
[1765249965319,0.03422827,90070.0,90069.0,0.06402]
[1765249967122,0.09494827,90070.0,90069.0,0.06402]
[1765249968327,0.06373827,90070.0,90069.0,0.06402]
[1765249970529,0.09494827,90070.0,90069.0,0.06402]
[1765249971224,0.03422827,90070.0,90069.0,0.06402]
[1765249971929,0.03422827,90070.0,90069.0,0.41402]
[1765249975029,0.09494827,90070.0,90069.0,0.16402]
[1765249975231,0.09494827,90070.0,90069.0,0.06402]
[1765249982542,0.09494827,90070.0,90069.0,0.03311]
[1765249982747,0.06072,90061.0,90060.0,0.00016653]
[1765249983051,0.08694827,90061.0,90060.0,0.05882653]
[1765249984038,0.08794827,90061.0,90060.0,0.05882653]
[1765249984848,0.09194827,90061.0,90060.0,0.06082653]
[1765249988453,0.09189778,90061.0,90060.0,0.07850653]
[1765249989353,0.09189778,90061.0,90060.0,0.08960933]
[1765249994340,0.09189778,90061.0,90060.0,0.07850653]
[1765249994541,0.09189778,90061.0,90060.0,0.06082653]
[1765249994742,0.51189778,90061.0,90060.0,0.00216653]
[1765249995056,0.05734,90041.0,90040.0,0.05764062]
[1765249995452,0.08350942,90041.0,90040.0,0.05764062]
[1765249996254,0.05734,90041.0,90040.0,0.05964062]
[1765249996753,0.05734,90041.0,90040.0,0.07696062]
[1765249996961,0.05934,90041.0,90040.0,0.07496062]
[1765249997150,0.05934,90041.0,90040.0,0.07596062]
[1765250000657,0.002,90041.0,90040.0,0.07596062]
[1765250000845,0.002,90041.0,90040.0,0.42596062]
[1765250003659,0.00016653,90050.0,90049.0,0.05653]
[1765250003859,0.0299,90051.0,90050.0,0.07385]
[1765250004059,0.0299,90051.0,90050.0,0.44385]
[1765250004559,0.05734,90051.0,90050.0,0.44385]
[1765250006157,0.06034,90051.0,90050.0,0.44385]
[1765250007365,0.0714439,90051.0,90050.0,0.05653]
[1765250007566,0.0714439,90051.0,90050.0,0.0284]
[1765250007862,0.068445,90042.0,90041.0,0.00016653]
[1765250008070,0.498445,90042.0,90041.0,0.00016653]
[1765250008865,0.05734,90041.0,90040.0,0.00111062]
[1765250009070,0.49344671,90041.0,90040.0,0.00111062]
[1765250009953,0.49344671,90041.0,90040.0,0.00211062]
[1765250010464,0.49544671,90041.0,90040.0,0.00211062]
[1765250011063,0.49544671,90041.0,90040.0,0.05864062]
[1765250012770,0.49544671,90041.0,90040.0,0.00211062]
[1765250017065,0.08544671,90041.0,90040.0,0.05864062]
[1765250017464,0.05934,90041.0,90040.0,0.05864062]
[1765250017868,0.08544229,90041.0,90040.0,0.05864062]
[1765250018974,0.05934,90041.0,90040.0,0.05864062]
[1765250019163,0.08544196,90041.0,90040.0,0.05864062]
[1765250019960,0.05934,90041.0,90040.0,0.05864062]
[1765250020275,0.08544397,90041.0,90040.0,0.05864062]
[1765250022879,0.08544397,90041.0,90040.0,0.07567062]
[1765250023177,0.08545946,90041.0,90040.0,0.07567062]
[1765250023662,0.44545946,90041.0,90040.0,0.00211062]
[1765250028975,0.44545946,90041.0,90040.0,0.03058062]
[1765250029183,0.08545946,90041.0,90040.0,0.07665062]
[1765250033185,0.08545946,90041.0,90040.0,0.08775582]
[1765250034486,0.02811946,90041.0,90040.0,0.08775582]
[1765250035180,0.05663946,90041.0,90040.0,0.08775582]
[1765250035892,0.08494946,90041.0,90040.0,0.08775582]
[1765250037092,0.02811946,90041.0,90040.0,0.46775582]
[1765250037487,0.002,90041.0,90040.0,0.46775582]
[1765250040490,0.02852,90055.0,90054.0,0.05751]
[1765250040698,0.05467149,90055.0,90054.0,0.05751]
[1765250040893,0.48408489,90055.0,90054.0,0.05751]
[1765250041098,0.05683,90046.0,90045.0,0.20475256]
[1765250041398,0.05683,90046.0,90045.0,0.07454]
[1765250041899,0.0679345,90046.0,90045.0,0.07454]
[1765250042398,0.0679345,90046.0,90045.0,0.05751]
[1765250042583,0.09407146,90046.0,90045.0,0.05751]
[1765250042782,0.09607146,90046.0,90045.0,0.05751]
[1765250043201,0.09607146,90046.0,90045.0,0.07454]
[1765250043900,0.0697551,90041.0,90040.0,0.05970062]
[1765250044796,0.0697551,90041.0,90040.0,0.07678062]
[1765250045501,0.0717551,90041.0,90040.0,0.07778062]
[1765250045796,0.0717551,90041.0,90040.0,0.07878062]
[1765250047205,0.09788722,90041.0,90040.0,0.07878062]
[1765250047901,0.08678212,90041.0,90040.0,0.41878062]
[1765250048694,0.02813212,90041.0,90040.0,0.41878062]
[1765250048900,0.002,90041.0,90040.0,0.41878062]
[1765250064808,0.00016653,90060.0,90059.0,0.0681529]
[1765250065003,0.02628138,90060.0,90059.0,0.4781529]
[1765250065319,0.11182418,90060.0,90059.0,0.41]
[1765250065518,0.11182418,90060.0,90050.0,0.00016653]
[1765250065519,0.05775,90051.0,90050.0,0.1875313]
[1765250065721,0.05775,90051.0,90050.0,0.42721653]
[1765250065907,0.0688533,90056.0,90055.0,0.07455]
[1765250066109,0.06191653,90060.0,90059.0,0.05705]
[1765250066309,0.08787846,90060.0,90059.0,0.42705]
[1765250066706,0.08487846,90060.0,90059.0,0.42705]
[1765250067418,0.08787846,90060.0,90059.0,0.42705]
[1765250067817,0.08687846,90060.0,90059.0,0.42705]
[1765250068722,0.08787846,90060.0,90059.0,0.42705]
[1765250069212,0.08787846,90060.0,90050.0,0.27189997]
[1765250069213,0.0688539,90051.0,90050.0,0.00016653]
[1765250069410,0.51468883,90051.0,90050.0,0.00016653]
[1765250070519,0.51668883,90051.0,90050.0,0.00316653]
[1765250071920,0.51669565,90051.0,90050.0,0.00316653]
[1765250073122,0.51669565,90051.0,90050.0,0.06021653]
[1765250073307,0.51669565,90051.0,90050.0,0.00316653]
[1765250076113,0.51669565,90051.0,90050.0,0.03092653]
[1765250076425,0.09669565,90051.0,90050.0,0.07771653]
[1765250076621,0.09669565,90051.0,90050.0,0.06021653]
[1765250077522,0.49669565,90051.0,90050.0,0.00316653]
[1765250077907,0.49669565,90051.0,90050.0,0.03092653]
[1765250078109,0.49669565,90051.0,90050.0,0.00316653]
[1765250093539,0.49669565,90051.0,90050.0,0.03158653]
[1765250093940,0.49669565,90051.0,90050.0,0.00316653]
[1765250096840,0.49669565,90051.0,90050.0,0.03158653]
[1765250097033,0.49669565,90051.0,90050.0,0.03114653]
[1765250097239,0.49669565,90051.0,90050.0,0.00316653]
[1765250098243,0.49669565,90051.0,90050.0,0.03158653]
[1765250100948,0.08559175,90051.0,90050.0,0.05956653]
[1765250101151,0.02784175,90051.0,90050.0,0.48956653]
[1765250101656,0.00016653,90060.0,90059.0,0.0564]
[1765250101872,0.00016653,90060.0,90059.0,0.4864]
[1765250102872,0.02976653,90060.0,90059.0,0.0564]
[1765250103073,0.05948653,90060.0,90059.0,0.0584]
[1765250103374,0.06148653,90060.0,90059.0,0.0584]
[1765250110380,0.44616653,90060.0,90059.0,0.002]
[1765250113688,0.47245473,90060.0,90059.0,0.002]
[1765250116785,0.47245473,90060.0,90059.0,0.03154]
[1765250117480,0.45777473,90060.0,90059.0,0.05984]
[1765250117681,0.45777473,90060.0,90059.0,0.03154]
[1765250118681,0.47245473,90060.0,90059.0,0.002]
[1765250122486,0.47245473,90060.0,90059.0,0.05984]
[1765250123281,0.47245473,90060.0,90059.0,0.03154]
[1765250126194,0.47245473,90060.0,90059.0,0.002]
[1765250126489,0.47245473,90060.0,90059.0,0.03154]
[1765250126792,0.45777473,90060.0,90059.0,0.05984]
[1765250126990,0.45777473,90060.0,90059.0,0.03154]
[1765250128187,0.47245473,90060.0,90059.0,0.03154]
[1765250129588,0.45777473,90060.0,90059.0,0.05984]
[1765250130485,0.08777473,90060.0,90059.0,0.05984]
[1765250130685,0.50245473,90060.0,90059.0,0.002]
[1765250137200,0.50245473,90060.0,90059.0,0.03154]
[1765250140302,0.50245473,90060.0,90059.0,0.002]
[1765250144205,0.50245473,90060.0,90059.0,0.05758]
[1765250145193,0.22777473,90060.0,90059.0,0.05758]
[1765250150809,0.08777473,90060.0,90059.0,0.05758]
[1765250158115,0.08777473,90060.0,90059.0,0.45758]
[1765250159312,0.02945473,90060.0,90059.0,0.45758]
[1765250159518,0.08924042,90076.0,90075.0,0.02787]
[1765250159808,0.02989,90076.0,90075.0,0.0666809]
[1765250160004,0.05926,90076.0,90075.0,0.0777572]
[1765250160204,0.05926,90083.0,90082.0,0.0666801]
[1765250160405,0.42926,90083.0,90082.0,0.05558]
[1765250162217,0.43126,90083.0,90082.0,0.06158]
[1765250162598,0.42926,90083.0,90082.0,0.05558]
[1765250162806,0.43126,90083.0,90082.0,0.06358]
[1765250163713,0.43126,90083.0,90082.0,0.009]
[1765250171722,0.45651278,90083.0,90082.0,0.009]
[1765250172126,0.5158632,90083.0,90082.0,0.009]
[1765250176719,0.068251,90074.0,90073.0,0.00016653]
[1765250177025,0.05715,90061.0,90060.0,0.15946972]
[1765250177214,0.49240278,90061.0,90060.0,0.02925]
[1765250177622,0.46715,90061.0,90060.0,0.02925]
[1765250177928,0.4782526,90061.0,90060.0,0.05729]
[1765250178625,0.4802526,90061.0,90060.0,0.06229]
[1765250178931,0.08241653,90061.0,90060.0,0.07492]
[1765250179114,0.08341653,90061.0,90060.0,0.07792]
[1765250179318,0.08541653,90061.0,90060.0,0.07792]
[1765250180334,0.08441653,90061.0,90060.0,0.07492]
[1765250180535,0.08641653,90061.0,90060.0,0.07692]
[1765250180831,0.08441653,90061.0,90060.0,0.07692]
[1765250181029,0.08641653,90061.0,90060.0,0.07692]
[1765250181529,0.08441653,90061.0,90060.0,0.07492]
[1765250181728,0.08641653,90061.0,90060.0,0.07692]
[1765250183725,0.08741653,90061.0,90060.0,0.07492]
[1765250184630,0.08441653,90061.0,90060.0,0.07492]
[1765250184833,0.08741653,90061.0,90060.0,0.07492]
[1765250185431,0.06215,90061.0,90060.0,0.07492]
[1765250185635,0.08723286,90061.0,90060.0,0.07492]
[1765250191534,0.0111028,90060.0,90056.0,0.02925]
[1765250191834,0.05715,90057.0,90056.0,0.02925]
[1765250192034,0.42715,90057.0,90056.0,0.02925]
[1765250192732,0.05715,90052.0,90051.0,0.05745653]
[1765250193821,0.05915,90052.0,90051.0,0.05745653]
[1765250194226,0.05915,90052.0,90051.0,0.00016653]
[1765250194227,0.47791966,90052.0,90051.0,0.00016653]
[1765250195236,0.47791966,90052.0,90051.0,0.02941653]
[1765250195428,0.47891966,90052.0,90051.0,0.02941653]
[1765250195629,0.47891966,90052.0,90051.0,0.05745653]
[1765250198340,0.33891966,90052.0,90051.0,0.05745653]
[1765250198738,0.32522966,90052.0,90051.0,0.05745653]
[1765250199937,0.30015,90052.0,90051.0,0.05745653]
[1765250200142,0.003,90052.0,90051.0,0.45745653]
[1765250200631,4.754e-05,90052.0,90051.0,0.45745653]
[1765250205233,0.02918754,90052.0,90051.0,0.45745653]
[1765250205429,0.05781754,90052.0,90051.0,0.05745653]